[Event "Titled Tuesday Blitz March 14 Early 2023"]
[White "Pakleza, Zbigniew"]
[Black "Csonka, Balazs"]
[WhiteFideId "1119290"]
[BlackFideId "742910"]
[WhiteElo "2410"]
[BlackElo "2404"]
[Result "0-1"]
[Round "10"]
[TimeControl "180+2"]
[Date "2023.03.14"]
[WhiteClock "0:00:03"]
[BlackClock "0:00:08"]

1. d4 {[%clk 0:02:55]}  d5 {[%clk 0:02:58]} 2. Bf4 {[%clk 0:02:55]}  c5 {[%clk 0:02:55]} 3. e3 {[%clk 0:02:54]}  cxd4 {[%clk 0:02:50]} 4. exd4 {[%clk 0:02:54]}  Nc6 {[%clk 0:02:51]} 5. c3 {[%clk 0:02:53]}  f6 {[%clk 0:02:51]} 6. Nf3 {[%clk 0:02:46]}  Bf5 {[%clk 0:02:44]} 7. Bd3 {[%clk 0:02:40]}  Bxd3 {[%clk 0:02:43]} 8. Qxd3 {[%clk 0:02:41]}  Qd7 {[%clk 0:02:33]} 9. Nbd2 {[%clk 0:02:36]}  g5 {[%clk 0:02:28]} 10. Bg3 {[%clk 0:02:27]}  Nh6 {[%clk 0:02:20]} 11. O-O-O {[%clk 0:02:26]}  Nf5 {[%clk 0:02:17]} 12. Rhe1 {[%clk 0:02:08]}  Bg7 {[%clk 0:02:07]} 13. Kb1 {[%clk 0:02:01]}  O-O-O {[%clk 0:01:57]} 14. Nb3 {[%clk 0:02:01]}  b6 {[%clk 0:01:50]} 15. Re2 {[%clk 0:01:24]}  h6 {[%clk 0:01:40]} 16. Rde1 {[%clk 0:01:21]}  Nxg3 {[%clk 0:01:40]} 17. hxg3 {[%clk 0:01:20]}  e5 {[%clk 0:01:40]} 18. dxe5 {[%clk 0:00:56]}  fxe5 {[%clk 0:01:38]} 19. Qg6 {[%clk 0:00:49]}  Rhg8 {[%clk 0:01:33]} 20. Rd1 {[%clk 0:00:32]}  Kb8 {[%clk 0:00:59]} 21. Qh7 {[%clk 0:00:24]}  Rh8 {[%clk 0:00:57]} 22. Qc2 {[%clk 0:00:24]}  Qf7 {[%clk 0:00:54]} 23. a4 {[%clk 0:00:22]}  a5 {[%clk 0:00:52]} 24. Red2 {[%clk 0:00:17]}  Rd7 {[%clk 0:00:49]} 25. Qd3 {[%clk 0:00:16]}  Rhd8 {[%clk 0:00:40]} 26. Qb5 {[%clk 0:00:15]}  Kc7 {[%clk 0:00:40]} 27. Ka2 {[%clk 0:00:10]}  Na7 {[%clk 0:00:30]} 28. Qa6 {[%clk 0:00:08]}  Nc6 {[%clk 0:00:31]} 29. Qb5 {[%clk 0:00:09]}  Na7 {[%clk 0:00:31]} 30. Qa6 {[%clk 0:00:09]}  Nc6 {[%clk 0:00:32]} 31. g4 {[%clk 0:00:10]}  d4 {[%clk 0:00:31]} 32. Qb5 {[%clk 0:00:05]}  dxc3 {[%clk 0:00:28]} 33. bxc3 {[%clk 0:00:06]}  Rxd2+ {[%clk 0:00:25]} 34. Rxd2 {[%clk 0:00:07]}  Rxd2+ {[%clk 0:00:25]} 35. Nxd2 {[%clk 0:00:08]}  Qxf2 {[%clk 0:00:25]} 36. Qc4 {[%clk 0:00:05]}  e4 {[%clk 0:00:17]} 37. Qxe4 {[%clk 0:00:02]}  Bxc3 {[%clk 0:00:17]} 38. Qh7+ {[%clk 0:00:03]}  Kb8 {[%clk 0:00:09]} 39. Qg8+ {[%clk 0:00:03]}  Kb7 {[%clk 0:00:09]} 40. Qf7+ {[%clk 0:00:03]}  Qxf7 {[%clk 0:00:08]} 0-1


[Site "https://www.chess.com"]

[Event "Titled Tuesday Blitz March 14 Early 2023"]
[White "Timofeev, Artyom"]
[Black "Gontcharov, Vladislav"]
[WhiteFideId "4140419"]
[BlackFideId "4123492"]
[WhiteElo "2586"]
[BlackElo "2470"]
[Result "0-1"]
[Round "10"]
[TimeControl "180+2"]
[Date "2023.03.14"]
[WhiteClock "0:00:04"]
[BlackClock "0:00:07"]

1. e4 {[%clk 0:03:00]}  e6 {[%clk 0:02:59]} 2. Qe2 {[%clk 0:02:59]}  c5 {[%clk 0:02:58]} 3. Nf3 {[%clk 0:02:59]}  Nc6 {[%clk 0:02:58]} 4. g3 {[%clk 0:02:59]}  g6 {[%clk 0:02:57]} 5. Bg2 {[%clk 0:02:59]}  Bg7 {[%clk 0:02:57]} 6. c3 {[%clk 0:02:59]}  d6 {[%clk 0:02:57]} 7. h4 {[%clk 0:02:58]}  h6 {[%clk 0:02:55]} 8. O-O {[%clk 0:02:57]}  Nge7 {[%clk 0:02:53]} 9. d3 {[%clk 0:02:51]}  O-O {[%clk 0:02:44]} 10. d4 {[%clk 0:02:50]}  cxd4 {[%clk 0:02:41]} 11. cxd4 {[%clk 0:02:50]}  Qb6 {[%clk 0:02:14]} 12. Nc3 {[%clk 0:02:39]}  Nxd4 {[%clk 0:02:11]} 13. Nxd4 {[%clk 0:02:39]}  Qxd4 {[%clk 0:02:11]} 14. Nb5 {[%clk 0:02:39]}  Qe5 {[%clk 0:02:02]} 15. f4 {[%clk 0:02:28]}  Qc5+ {[%clk 0:01:59]} 16. Be3 {[%clk 0:02:27]}  Qb4 {[%clk 0:01:59]} 17. a3 {[%clk 0:02:12]}  Qxb2 {[%clk 0:01:58]} 18. Qxb2 {[%clk 0:02:12]}  Bxb2 {[%clk 0:01:57]} 19. Rab1 {[%clk 0:02:12]}  Bg7 {[%clk 0:01:50]} 20. Nc7 {[%clk 0:02:12]}  Rb8 {[%clk 0:01:46]} 21. Bxa7 {[%clk 0:02:11]}  Bd7 {[%clk 0:01:46]} 22. Bxb8 {[%clk 0:02:09]}  Rxb8 {[%clk 0:01:46]} 23. Rfd1 {[%clk 0:01:59]}  Nc8 {[%clk 0:01:28]} 24. Bf1 {[%clk 0:01:20]}  Bc6 {[%clk 0:01:24]} 25. Bg2 {[%clk 0:01:17]}  Bf8 {[%clk 0:01:00]} 26. Rdc1 {[%clk 0:01:16]}  Na7 {[%clk 0:00:56]} 27. Na6 {[%clk 0:01:10]}  Ra8 {[%clk 0:00:31]} 28. Nb4 {[%clk 0:01:07]}  Be8 {[%clk 0:00:31]} 29. e5 {[%clk 0:00:53]}  d5 {[%clk 0:00:31]} 30. Bf1 {[%clk 0:00:52]}  b6 {[%clk 0:00:25]} 31. Kg2 {[%clk 0:00:50]}  Bc5 {[%clk 0:00:23]} 32. Rb3 {[%clk 0:00:48]}  Nb5 {[%clk 0:00:19]} 33. Ra1 {[%clk 0:00:32]}  Nd4 {[%clk 0:00:18]} 34. Rb2 {[%clk 0:00:31]}  Bxb4 {[%clk 0:00:17]} 35. Rxb4 {[%clk 0:00:27]}  Nc2 {[%clk 0:00:17]} 36. Rbb1 {[%clk 0:00:24]}  Nxa1 {[%clk 0:00:17]} 37. Rxa1 {[%clk 0:00:24]}  b5 {[%clk 0:00:18]} 38. Rb1 {[%clk 0:00:24]}  Rxa3 {[%clk 0:00:17]} 39. Bxb5 {[%clk 0:00:24]}  Bxb5 {[%clk 0:00:17]} 40. Rxb5 {[%clk 0:00:24]}  h5 {[%clk 0:00:17]} 41. Rb8+ {[%clk 0:00:21]}  Kg7 {[%clk 0:00:16]} 42. Rd8 {[%clk 0:00:21]}  Re3 {[%clk 0:00:14]} 43. Kf2 {[%clk 0:00:21]}  Ra3 {[%clk 0:00:14]} 44. Kg2 {[%clk 0:00:21]}  Ra7 {[%clk 0:00:14]} 45. Kf2 {[%clk 0:00:20]}  f6 {[%clk 0:00:11]} 46. exf6+ {[%clk 0:00:18]}  Kxf6 {[%clk 0:00:11]} 47. Kf3 {[%clk 0:00:18]}  Ra3+ {[%clk 0:00:10]} 48. Kf2 {[%clk 0:00:18]}  Kf5 {[%clk 0:00:10]} 49. Rf8+ {[%clk 0:00:17]}  Kg4 {[%clk 0:00:11]} 50. Rf6 {[%clk 0:00:17]}  Rf3+ {[%clk 0:00:11]} 51. Ke2 {[%clk 0:00:17]}  Rxg3 {[%clk 0:00:11]} 52. Rxg6+ {[%clk 0:00:17]}  Kxf4 {[%clk 0:00:11]} 53. Rxe6 {[%clk 0:00:17]}  d4 {[%clk 0:00:12]} 54. Kf2 {[%clk 0:00:13]}  Rd3 {[%clk 0:00:11]} 55. Rg6 {[%clk 0:00:10]}  Rd2+ {[%clk 0:00:10]} 56. Ke1 {[%clk 0:00:10]}  Rh2 {[%clk 0:00:10]} 57. Rd6 {[%clk 0:00:10]}  Ke3 {[%clk 0:00:07]} 58. Re6+ {[%clk 0:00:11]}  Kd3 {[%clk 0:00:07]} 59. Ra6 {[%clk 0:00:10]}  Rxh4 {[%clk 0:00:07]} 60. Ra3+ {[%clk 0:00:09]}  Ke4 {[%clk 0:00:07]} 61. Rb3 {[%clk 0:00:09]}  Rh2 {[%clk 0:00:06]} 62. Kf1 {[%clk 0:00:09]}  Rc2 {[%clk 0:00:06]} 63. Ke1 {[%clk 0:00:09]}  Rh2 {[%clk 0:00:05]} 64. Kf1 {[%clk 0:00:09]}  d3 {[%clk 0:00:05]} 65. Rb8 {[%clk 0:00:07]}  d2 {[%clk 0:00:03]} 66. Re8+ {[%clk 0:00:06]}  Kf4 {[%clk 0:00:01]} 67. Rf8+ {[%clk 0:00:06]}  Ke4 {[%clk 0:00:01]} 68. Re8+ {[%clk 0:00:06]}  Kd3 {[%clk 0:00:02]} 69. Rd8+ {[%clk 0:00:06]}  Kc2 {[%clk 0:00:02]} 70. Rc8+ {[%clk 0:00:07]}  Kd1 {[%clk 0:00:03]} 71. Kg1 {[%clk 0:00:05]}  Rh4 {[%clk 0:00:03]} 72. Kf1 {[%clk 0:00:05]}  Rg4 {[%clk 0:00:04]} 73. Kf2 {[%clk 0:00:05]}  Rf4+ {[%clk 0:00:04]} 74. Ke3 {[%clk 0:00:05]}  Rf7 {[%clk 0:00:05]} 75. Rd8 {[%clk 0:00:05]}  Ke1 {[%clk 0:00:05]} 76. Rxd2 {[%clk 0:00:03]}  Re7+ {[%clk 0:00:06]} 77. Kf4 {[%clk 0:00:03]}  Kxd2 {[%clk 0:00:05]} 78. Kg5 {[%clk 0:00:04]}  Ke3 {[%clk 0:00:05]} 79. Kxh5 {[%clk 0:00:04]}  Rg7 {[%clk 0:00:06]} 80. Kh6 {[%clk 0:00:04]}  Rg1 {[%clk 0:00:07]} 0-1


[Site "https://www.chess.com"]

[Event "Titled Tuesday Blitz March 14 Early 2023"]
[White "Safin, Robert"]
[Black "Molina, Roberto Junio Brito"]
[WhiteFideId "34189120"]
[BlackFideId "2109450"]
[WhiteElo "2245"]
[BlackElo "2376"]
[Result "1-0"]
[Round "10"]
[TimeControl "180+2"]
[Date "2023.03.14"]
[WhiteClock "0:00:11"]
[BlackClock "0:01:03"]

1. e4 {[%clk 0:02:57]}  c6 {[%clk 0:02:59]} 2. d4 {[%clk 0:02:56]}  d5 {[%clk 0:02:59]} 3. exd5 {[%clk 0:02:57]}  cxd5 {[%clk 0:02:59]} 4. c4 {[%clk 0:02:58]}  Nf6 {[%clk 0:02:58]} 5. Nc3 {[%clk 0:02:59]}  e6 {[%clk 0:02:58]} 6. Nf3 {[%clk 0:02:58]}  Be7 {[%clk 0:02:57]} 7. Bg5 {[%clk 0:02:47]}  O-O {[%clk 0:02:53]} 8. a3 {[%clk 0:02:42]}  dxc4 {[%clk 0:02:47]} 9. Bxc4 {[%clk 0:02:42]}  a6 {[%clk 0:02:47]} 10. O-O {[%clk 0:02:39]}  b5 {[%clk 0:02:47]} 11. Ba2 {[%clk 0:02:39]}  Bb7 {[%clk 0:02:46]} 12. Re1 {[%clk 0:02:29]}  Nc6 {[%clk 0:02:41]} 13. Qd3 {[%clk 0:01:39]}  b4 {[%clk 0:02:39]} 14. Na4 {[%clk 0:01:30]}  bxa3 {[%clk 0:02:35]} 15. bxa3 {[%clk 0:01:31]}  Na5 {[%clk 0:02:30]} 16. Ne5 {[%clk 0:01:14]}  Bd5 {[%clk 0:02:27]} 17. Bxd5 {[%clk 0:00:53]}  Nxd5 {[%clk 0:02:25]} 18. Bxe7 {[%clk 0:00:53]}  Nxe7 {[%clk 0:02:17]} 19. Nc5 {[%clk 0:00:51]}  Nac6 {[%clk 0:02:01]} 20. Rad1 {[%clk 0:00:33]}  Nxe5 {[%clk 0:01:50]} 21. Rxe5 {[%clk 0:00:34]}  a5 {[%clk 0:01:45]} 22. h3 {[%clk 0:00:23]}  Ra7 {[%clk 0:01:41]} 23. Qc4 {[%clk 0:00:21]}  Qd6 {[%clk 0:01:39]} 24. Rde1 {[%clk 0:00:17]}  Rc7 {[%clk 0:01:30]} 25. Qb3 {[%clk 0:00:12]}  Qxd4 {[%clk 0:01:25]} 26. Nxe6 {[%clk 0:00:09]}  fxe6 {[%clk 0:01:25]} 27. Rxe6 {[%clk 0:00:10]}  Qd5 {[%clk 0:01:20]} 28. Qg3 {[%clk 0:00:09]}  Rc1 {[%clk 0:01:14]} 29. Rxe7 {[%clk 0:00:08]}  Rxe1+ {[%clk 0:01:13]} 30. Rxe1 {[%clk 0:00:09]}  Qc5 {[%clk 0:01:06]} 31. Qe3 {[%clk 0:00:08]}  Qd6 {[%clk 0:01:03]} 32. Qe6+ {[%clk 0:00:07]}  Qxe6 {[%clk 0:01:03]} 33. Rxe6 {[%clk 0:00:08]}  Rf4 {[%clk 0:01:04]} 34. Re3 {[%clk 0:00:07]}  Rc4 {[%clk 0:01:04]} 35. Rf3 {[%clk 0:00:06]}  g6 {[%clk 0:01:04]} 36. g3 {[%clk 0:00:06]}  Kg7 {[%clk 0:01:03]} 37. Kg2 {[%clk 0:00:06]}  Rc2 {[%clk 0:01:03]} 38. h4 {[%clk 0:00:05]}  Rb2 {[%clk 0:01:02]} 39. g4 {[%clk 0:00:05]}  h6 {[%clk 0:01:02]} 40. Kg3 {[%clk 0:00:06]}  a4 {[%clk 0:01:02]} 41. Re3 {[%clk 0:00:03]}  Kf6 {[%clk 0:01:02]} 42. Kf3 {[%clk 0:00:03]}  g5 {[%clk 0:01:01]} 43. hxg5+ {[%clk 0:00:02]}  hxg5 {[%clk 0:01:02]} 44. Kg3 {[%clk 0:00:03]}  Rb3 {[%clk 0:01:01]} 45. Kf3 {[%clk 0:00:03]}  Rb2 {[%clk 0:01:00]} 46. Kg3 {[%clk 0:00:04]}  Kf7 {[%clk 0:01:01]} 47. Kf3 {[%clk 0:00:04]}  Kg6 {[%clk 0:01:01]} 48. Kg3 {[%clk 0:00:04]}  Kf6 {[%clk 0:01:02]} 49. Rf3+ {[%clk 0:00:05]}  Ke5 {[%clk 0:01:02]} 50. Rf5+ {[%clk 0:00:05]}  Kd4 {[%clk 0:01:01]} 51. Rxg5 {[%clk 0:00:05]}  Rb3+ {[%clk 0:01:02]} 52. Kf4 {[%clk 0:00:04]}  Rxa3 {[%clk 0:01:03]} 53. Ra5 {[%clk 0:00:04]}  Kc4 {[%clk 0:01:02]} 54. g5 {[%clk 0:00:04]}  Kb4 {[%clk 0:01:03]} 55. Ra8 {[%clk 0:00:04]}  Ra1 {[%clk 0:01:03]} 56. Kf5 {[%clk 0:00:04]}  a3 {[%clk 0:01:03]} 57. g6 {[%clk 0:00:03]}  Rg1 {[%clk 0:01:02]} 58. f4 {[%clk 0:00:03]}  Kb3 {[%clk 0:01:01]} 59. Kf6 {[%clk 0:00:03]}  a2 {[%clk 0:01:00]} 60. f5 {[%clk 0:00:04]}  a1=Q+ {[%clk 0:00:59]} 61. Rxa1 {[%clk 0:00:03]}  Rxa1 {[%clk 0:00:59]} 62. g7 {[%clk 0:00:03]}  Ra6+ {[%clk 0:01:00]} 63. Kf7 {[%clk 0:00:03]}  Ra7+ {[%clk 0:01:00]} 64. Kg6 {[%clk 0:00:03]}  Ra1 {[%clk 0:00:58]} 65. g8=Q+ {[%clk 0:00:01]}  Kc3 {[%clk 0:00:57]} 66. Qh8+ {[%clk 0:00:01]}  Kd3 {[%clk 0:00:56]} 67. Qxa1 {[%clk 0:00:02]}  Ke4 {[%clk 0:00:57]} 68. Qb1+ {[%clk 0:00:02]}  Kf4 {[%clk 0:00:58]} 69. Qc1+ {[%clk 0:00:03]}  Ke5 {[%clk 0:00:59]} 70. Qb1 {[%clk 0:00:04]}  Kf4 {[%clk 0:00:58]} 71. f6 {[%clk 0:00:05]}  Ke5 {[%clk 0:00:59]} 72. f7 {[%clk 0:00:06]}  Ke6 {[%clk 0:01:00]} 73. Kg7 {[%clk 0:00:07]}  Kd7 {[%clk 0:01:01]} 74. Qc2 {[%clk 0:00:07]}  Ke7 {[%clk 0:01:01]} 75. Qe2+ {[%clk 0:00:08]}  Kd6 {[%clk 0:01:00]} 76. f8=Q+ {[%clk 0:00:09]}  Kd7 {[%clk 0:01:01]} 77. Qf5+ {[%clk 0:00:09]}  Kc6 {[%clk 0:01:02]} 78. Qee6+ {[%clk 0:00:10]}  Kb7 {[%clk 0:01:02]} 79. Qff7+ {[%clk 0:00:10]}  Kb8 {[%clk 0:01:03]} 80. Qee8# {[%clk 0:00:11]} 1-0


[Site "https://www.chess.com"]

[Event "Titled Tuesday Blitz March 14 Early 2023"]
[White "Costachi, Mihnea"]
[Black "Domingo Nunez, Alejandro"]
[WhiteFideId "1217518"]
[BlackFideId "22245561"]
[WhiteElo "2456"]
[BlackElo "2230"]
[Result "1-0"]
[Round "10"]
[TimeControl "180+2"]
[Date "2023.03.14"]
[WhiteClock "0:01:00"]
[BlackClock "0:00:54"]

1. Nc3 {[%clk 0:03:00]}  g6 {[%clk 0:02:38]} 2. d4 {[%clk 0:03:00]}  Bg7 {[%clk 0:02:39]} 3. e4 {[%clk 0:03:00]}  c6 {[%clk 0:02:39]} 4. f3 {[%clk 0:02:59]}  d5 {[%clk 0:02:40]} 5. Be3 {[%clk 0:02:59]}  dxe4 {[%clk 0:02:36]} 6. fxe4 {[%clk 0:02:59]}  e5 {[%clk 0:02:34]} 7. d5 {[%clk 0:02:57]}  Nf6 {[%clk 0:02:33]} 8. h3 {[%clk 0:02:54]}  Nh5 {[%clk 0:02:13]} 9. Nf3 {[%clk 0:02:47]}  O-O {[%clk 0:02:10]} 10. Qd2 {[%clk 0:02:46]}  Ng3 {[%clk 0:02:10]} 11. Rg1 {[%clk 0:02:46]}  cxd5 {[%clk 0:02:06]} 12. exd5 {[%clk 0:02:38]}  e4 {[%clk 0:02:00]} 13. Nd4 {[%clk 0:02:32]}  Nd7 {[%clk 0:01:56]} 14. O-O-O {[%clk 0:02:31]}  Ne5 {[%clk 0:01:54]} 15. Bf4 {[%clk 0:02:09]}  Nh5 {[%clk 0:01:42]} 16. Bh6 {[%clk 0:01:54]}  Bxh6 {[%clk 0:01:20]} 17. Qxh6 {[%clk 0:01:55]}  f5 {[%clk 0:01:21]} 18. Be2 {[%clk 0:01:13]}  Ng7 {[%clk 0:01:06]} 19. g4 {[%clk 0:01:07]}  f4 {[%clk 0:00:54]} 20. Nxe4 {[%clk 0:01:04]}  f3 {[%clk 0:00:54]} 21. Ng5 {[%clk 0:01:00]} 1-0


[Site "https://www.chess.com"]

[Event "Titled Tuesday Blitz March 14 Early 2023"]
[White "Horak, Martin"]
[Black "Starozhilov, Leonid"]
[WhiteFideId "367095"]
[BlackFideId "14106752"]
[WhiteElo "2091"]
[BlackElo "2402"]
[Result "0-1"]
[Round "10"]
[TimeControl "180+2"]
[Date "2023.03.14"]
[WhiteClock "0:00:03"]
[BlackClock "0:00:38"]

1. e4 {[%clk 0:02:59]}  c5 {[%clk 0:02:58]} 2. Nf3 {[%clk 0:02:58]}  e6 {[%clk 0:02:58]} 3. b3 {[%clk 0:02:58]}  Nc6 {[%clk 0:02:54]} 4. Bb2 {[%clk 0:02:58]}  d5 {[%clk 0:02:47]} 5. exd5 {[%clk 0:02:58]}  exd5 {[%clk 0:02:47]} 6. Bb5 {[%clk 0:02:58]}  Nf6 {[%clk 0:02:43]} 7. O-O {[%clk 0:02:54]}  Be7 {[%clk 0:02:41]} 8. d4 {[%clk 0:02:49]}  O-O {[%clk 0:02:33]} 9. h3 {[%clk 0:02:19]}  Ne4 {[%clk 0:02:26]} 10. Nbd2 {[%clk 0:02:08]}  Bf6 {[%clk 0:02:18]} 11. Bd3 {[%clk 0:02:00]}  Bf5 {[%clk 0:02:16]} 12. Re1 {[%clk 0:01:41]}  Re8 {[%clk 0:02:16]} 13. Nf1 {[%clk 0:01:20]}  cxd4 {[%clk 0:02:08]} 14. g4 {[%clk 0:01:02]}  Bg6 {[%clk 0:02:07]} 15. Ng3 {[%clk 0:01:02]}  Nxg3 {[%clk 0:01:59]} 16. fxg3 {[%clk 0:01:02]}  Be4 {[%clk 0:01:58]} 17. Kh2 {[%clk 0:00:47]}  h6 {[%clk 0:01:54]} 18. Rf1 {[%clk 0:00:46]}  Bxd3 {[%clk 0:01:48]} 19. Qxd3 {[%clk 0:00:41]}  Re3 {[%clk 0:01:47]} 20. Qd2 {[%clk 0:00:41]}  Qb6 {[%clk 0:01:33]} 21. Rae1 {[%clk 0:00:36]}  Rae8 {[%clk 0:01:32]} 22. h4 {[%clk 0:00:30]}  Qc7 {[%clk 0:01:09]} 23. g5 {[%clk 0:00:23]}  hxg5 {[%clk 0:01:09]} 24. hxg5 {[%clk 0:00:23]}  Bxg5 {[%clk 0:01:09]} 25. Bxd4 {[%clk 0:00:13]}  Rxe1 {[%clk 0:00:43]} 26. Qxg5 {[%clk 0:00:12]}  Nxd4 {[%clk 0:00:41]} 27. Nxd4 {[%clk 0:00:05]}  Rxf1 {[%clk 0:00:39]} 28. Nf5 {[%clk 0:00:03]}  Rxf5 {[%clk 0:00:38]} 29. Qxg7+ {[%clk 0:00:03]}  Kxg7 {[%clk 0:00:38]} 0-1


[Site "https://www.chess.com"]

[Event "Titled Tuesday Blitz March 14 Early 2023"]
[White "Tarasova, Viktoriya"]
[Black "polandchessplayer"]
[WhiteFideId "4175840"]
[WhiteElo "2182"]
[BlackElo "2601"]
[Result "1/2-1/2"]
[Round "10"]
[TimeControl "180+2"]
[Date "2023.03.14"]
[WhiteClock "0:00:14"]
[BlackClock "0:00:06"]

1. d4 {[%clk 0:03:00]}  Nf6 {[%clk 0:02:59]} 2. c4 {[%clk 0:03:00]}  e6 {[%clk 0:02:59]} 3. Nc3 {[%clk 0:03:00]}  c5 {[%clk 0:02:59]} 4. d5 {[%clk 0:03:00]}  exd5 {[%clk 0:03:00]} 5. cxd5 {[%clk 0:03:00]}  d6 {[%clk 0:03:01]} 6. Nf3 {[%clk 0:03:00]}  g6 {[%clk 0:03:02]} 7. Bf4 {[%clk 0:03:00]}  Bg7 {[%clk 0:03:02]} 8. h3 {[%clk 0:03:01]}  O-O {[%clk 0:03:02]} 9. e3 {[%clk 0:03:01]}  a6 {[%clk 0:03:03]} 10. a4 {[%clk 0:03:01]}  Qc7 {[%clk 0:03:03]} 11. Be2 {[%clk 0:03:00]}  Nbd7 {[%clk 0:03:03]} 12. Nd2 {[%clk 0:03:00]}  Rb8 {[%clk 0:02:57]} 13. O-O {[%clk 0:02:58]}  Ne8 {[%clk 0:02:45]} 14. Qc2 {[%clk 0:02:54]}  Ne5 {[%clk 0:02:44]} 15. Bh2 {[%clk 0:02:51]}  f5 {[%clk 0:02:38]} 16. Rfe1 {[%clk 0:02:47]}  Bd7 {[%clk 0:02:38]} 17. a5 {[%clk 0:02:44]}  Nf7 {[%clk 0:02:30]} 18. Nc4 {[%clk 0:02:41]}  Nf6 {[%clk 0:02:29]} 19. Bd3 {[%clk 0:02:26]}  Bb5 {[%clk 0:02:26]} 20. Nb6 {[%clk 0:02:17]}  Bxd3 {[%clk 0:02:25]} 21. Qxd3 {[%clk 0:02:18]}  Nd7 {[%clk 0:02:23]} 22. Nxd7 {[%clk 0:02:13]}  Qxd7 {[%clk 0:02:24]} 23. e4 {[%clk 0:02:05]}  Ne5 {[%clk 0:02:23]} 24. Bxe5 {[%clk 0:01:51]}  Bxe5 {[%clk 0:02:24]} 25. exf5 {[%clk 0:01:51]}  Qxf5 {[%clk 0:02:22]} 26. Qxf5 {[%clk 0:01:40]}  Rxf5 {[%clk 0:02:22]} 27. Rad1 {[%clk 0:01:40]}  Rbf8 {[%clk 0:02:22]} 28. Ne4 {[%clk 0:01:16]}  Bd4 {[%clk 0:02:22]} 29. Nxd6 {[%clk 0:00:40]}  Rxf2 {[%clk 0:02:08]} 30. Kh1 {[%clk 0:00:35]}  Rxb2 {[%clk 0:02:08]} 31. Re7 {[%clk 0:00:33]}  Rbf2 {[%clk 0:02:06]} 32. Nxb7 {[%clk 0:00:21]}  Bf6 {[%clk 0:01:58]} 33. Re6 {[%clk 0:00:16]}  c4 {[%clk 0:01:57]} 34. d6 {[%clk 0:00:16]}  c3 {[%clk 0:01:57]} 35. d7 {[%clk 0:00:15]}  c2 {[%clk 0:01:58]} 36. Rg1 {[%clk 0:00:13]}  Bg5 {[%clk 0:01:53]} 37. h4 {[%clk 0:00:11]}  Rf1 {[%clk 0:01:52]} 38. Rc6 {[%clk 0:00:09]}  Rd1 {[%clk 0:01:03]} 39. hxg5 {[%clk 0:00:06]}  Rxd7 {[%clk 0:00:58]} 40. Rxc2 {[%clk 0:00:05]}  Rxb7 {[%clk 0:00:58]} 41. Rc6 {[%clk 0:00:05]}  Rf5 {[%clk 0:00:54]} 42. Kh2 {[%clk 0:00:04]}  Rxa5 {[%clk 0:00:54]} 43. Rgc1 {[%clk 0:00:04]}  Rf7 {[%clk 0:00:50]} 44. Rc8+ {[%clk 0:00:03]}  Kg7 {[%clk 0:00:51]} 45. Ra8 {[%clk 0:00:04]}  Rxg5 {[%clk 0:00:46]} 46. Rxa6 {[%clk 0:00:04]}  Rf2 {[%clk 0:00:47]} 47. Kg1 {[%clk 0:00:04]}  Rfxg2+ {[%clk 0:00:45]} 48. Kh1 {[%clk 0:00:05]}  Rg1+ {[%clk 0:00:46]} 49. Rxg1 {[%clk 0:00:04]}  Rh5+ {[%clk 0:00:47]} 50. Kg2 {[%clk 0:00:04]}  Rg5+ {[%clk 0:00:47]} 51. Kf1 {[%clk 0:00:05]}  Rf5+ {[%clk 0:00:48]} 52. Ke2 {[%clk 0:00:05]}  Re5+ {[%clk 0:00:48]} 53. Kd3 {[%clk 0:00:06]}  Re7 {[%clk 0:00:45]} 54. Kd4 {[%clk 0:00:06]}  Rf7 {[%clk 0:00:42]} 55. Kd5 {[%clk 0:00:06]}  Rf5+ {[%clk 0:00:42]} 56. Ke4 {[%clk 0:00:06]}  Rf7 {[%clk 0:00:43]} 57. Rga1 {[%clk 0:00:05]}  Rf8 {[%clk 0:00:20]} 58. Ra7+ {[%clk 0:00:05]}  Kh6 {[%clk 0:00:19]} 59. Rh1+ {[%clk 0:00:05]}  Kg5 {[%clk 0:00:20]} 60. Rhxh7 {[%clk 0:00:05]}  Rf4+ {[%clk 0:00:20]} 61. Ke3 {[%clk 0:00:05]}  Rf5 {[%clk 0:00:20]} 62. Ke4 {[%clk 0:00:06]}  Rf4+ {[%clk 0:00:21]} 63. Kd3 {[%clk 0:00:06]}  Rf5 {[%clk 0:00:21]} 64. Ke2 {[%clk 0:00:07]}  Re5+ {[%clk 0:00:22]} 65. Kf2 {[%clk 0:00:07]}  Rf5+ {[%clk 0:00:22]} 66. Kg3 {[%clk 0:00:07]}  Rb5 {[%clk 0:00:23]} 67. Rhg7 {[%clk 0:00:08]}  Kf6 {[%clk 0:00:19]} 68. Kf3 {[%clk 0:00:08]}  Rb4 {[%clk 0:00:19]} 69. Ke3 {[%clk 0:00:07]}  g5 {[%clk 0:00:18]} 70. Rgf7+ {[%clk 0:00:07]}  Kg6 {[%clk 0:00:19]} 71. Rg7+ {[%clk 0:00:08]}  Kh5 {[%clk 0:00:19]} 72. Raf7 {[%clk 0:00:08]}  Rb3+ {[%clk 0:00:18]} 73. Kf2 {[%clk 0:00:08]}  Rb2+ {[%clk 0:00:18]} 74. Kf1 {[%clk 0:00:09]}  g4 {[%clk 0:00:16]} 75. Kg1 {[%clk 0:00:08]}  Kh4 {[%clk 0:00:15]} 76. Rf2 {[%clk 0:00:07]}  Rb1+ {[%clk 0:00:13]} 77. Kg2 {[%clk 0:00:08]}  Rb5 {[%clk 0:00:10]} 78. Re2 {[%clk 0:00:08]}  Rf5 {[%clk 0:00:06]} 79. Rh7+ {[%clk 0:00:08]}  Kg5 {[%clk 0:00:06]} 80. Rg7+ {[%clk 0:00:08]}  Kh5 {[%clk 0:00:06]} 81. Rf2 {[%clk 0:00:08]}  Ra5 {[%clk 0:00:06]} 82. Rd2 {[%clk 0:00:07]}  Rb5 {[%clk 0:00:06]} 83. Rd4 {[%clk 0:00:07]}  Rb2+ {[%clk 0:00:06]} 84. Kf1 {[%clk 0:00:07]}  Rb1+ {[%clk 0:00:07]} 85. Kg2 {[%clk 0:00:08]}  Rb2+ {[%clk 0:00:07]} 86. Kg3 {[%clk 0:00:08]}  Rb3+ {[%clk 0:00:08]} 87. Kf2 {[%clk 0:00:09]}  Rb2+ {[%clk 0:00:07]} 88. Kf1 {[%clk 0:00:10]}  Rb1+ {[%clk 0:00:08]} 89. Ke2 {[%clk 0:00:10]}  Rb2+ {[%clk 0:00:08]} 90. Kd1 {[%clk 0:00:11]}  Rg2 {[%clk 0:00:07]} 91. Rh7+ {[%clk 0:00:10]}  Kg5 {[%clk 0:00:07]} 92. Ke1 {[%clk 0:00:10]}  Kf5 {[%clk 0:00:06]} 93. Kf1 {[%clk 0:00:10]}  Rb2 {[%clk 0:00:05]} 94. Rh8 {[%clk 0:00:10]}  Rb1+ {[%clk 0:00:06]} 95. Kg2 {[%clk 0:00:11]}  Rb2+ {[%clk 0:00:06]} 96. Kg1 {[%clk 0:00:11]}  Rb1+ {[%clk 0:00:07]} 97. Kh2 {[%clk 0:00:12]}  Rb2+ {[%clk 0:00:07]} 98. Kg3 {[%clk 0:00:12]}  Rb3+ {[%clk 0:00:08]} 99. Kg2 {[%clk 0:00:12]}  Rb2+ {[%clk 0:00:09]} 100. Kf1 {[%clk 0:00:12]}  Rb1+ {[%clk 0:00:09]} 101. Ke2 {[%clk 0:00:13]}  Rb2+ {[%clk 0:00:08]} 102. Kd1 {[%clk 0:00:13]}  Rb1+ {[%clk 0:00:08]} 103. Kc2 {[%clk 0:00:13]}  Rg1 {[%clk 0:00:08]} 104. Rf8+ {[%clk 0:00:13]}  Kg5 {[%clk 0:00:09]} 105. Rg8+ {[%clk 0:00:13]}  Kh4 {[%clk 0:00:09]} 106. Kd2 {[%clk 0:00:13]}  Rg2+ {[%clk 0:00:08]} 107. Ke1 {[%clk 0:00:13]}  Kh3 {[%clk 0:00:08]} 108. Rd3+ {[%clk 0:00:13]}  Kh4 {[%clk 0:00:05]} 109. Kf1 {[%clk 0:00:13]}  Ra2 {[%clk 0:00:05]} 110. Kg1 {[%clk 0:00:13]}  Ra1+ {[%clk 0:00:05]} 111. Kg2 {[%clk 0:00:14]}  Ra2+ {[%clk 0:00:06]} 112. Kf1 {[%clk 0:00:14]}  Ra1+ {[%clk 0:00:06]} 113. Kf2 {[%clk 0:00:15]}  Ra2+ {[%clk 0:00:07]} 114. Ke3 {[%clk 0:00:15]}  Ra5 {[%clk 0:00:07]} 115. Rd4 {[%clk 0:00:15]}  Ra3+ {[%clk 0:00:05]} 116. Kf2 {[%clk 0:00:15]}  Rf3+ {[%clk 0:00:03]} 117. Kg2 {[%clk 0:00:15]}  Rg3+ {[%clk 0:00:03]} 118. Kh2 {[%clk 0:00:15]}  Rh3+ {[%clk 0:00:04]} 119. Kg1 {[%clk 0:00:16]}  Rg3+ {[%clk 0:00:04]} 120. Kf1 {[%clk 0:00:17]}  Rf3+ {[%clk 0:00:05]} 121. Ke2 {[%clk 0:00:17]}  Rg3 {[%clk 0:00:06]} 122. Rd5 {[%clk 0:00:17]}  Kh3 {[%clk 0:00:06]} 123. Kf1 {[%clk 0:00:15]}  Rf3+ {[%clk 0:00:06]} 124. Kg1 {[%clk 0:00:14]}  Rg3+ {[%clk 0:00:06]} 1/2-1/2


[Site "https://www.chess.com"]